[Event "Live Chess"]
[Site "Chess.com"]
[Date "2024.06.02"]
[Round "-"]
[White "JoeyCage"]
[Black "yarek"]
[Result "1-0"]
[WhiteElo "2397"]
[BlackElo "1746"]
[TimeControl "300"]
[EndTime "6:37:00 PDT"]
[Termination "JoeyCage won by resignation"]

1. e4 {[%clk 0:04:56.1]} 1... g6 {[%clk 0:04:59.6]} 2. d4 {[%clk 0:04:54.5]}
2... Bg7 {[%clk 0:04:59.2]} 3. Nf3 {[%clk 0:04:52.3]} 3... c6 {[%clk 0:04:58.7]}
4. c4 {[%clk 0:04:49]} 4... d5 {[%clk 0:04:58.1]} 5. e5 {[%clk 0:04:48]} 5...
Bg4 {[%clk 0:04:56.3]} 6. Nc3 {[%clk 0:04:46.6]} 6... e6 {[%clk 0:04:52]} 7. Be3
{[%clk 0:04:43.6]} 7... h5 {[%clk 0:04:51.3]} 8. h3 {[%clk 0:04:42.3]} 8... Bxf3
{[%clk 0:04:49.5]} 9. Qxf3 {[%clk 0:04:40.6]} 9... Nh6 {[%clk 0:04:49]} 10. g4
{[%clk 0:04:32.9]} 10... h4 {[%clk 0:04:40.7]} 11. Bd3 {[%clk 0:04:28.5]} 11...
dxc4 {[%clk 0:04:32]} 12. Bxc4 {[%clk 0:04:25.5]} 12... Nd7 {[%clk 0:04:13.1]}
13. Ne4 {[%clk 0:04:22.3]} 13... Bf8 {[%clk 0:04:00.5]} 14. O-O {[%clk
0:04:15.7]} 14... Be7 {[%clk 0:03:56.6]} 15. a3 {[%clk 0:04:09]} 15... Nb6
{[%clk 0:03:48.3]} 16. Bd3 {[%clk 0:04:01.3]} 16... Nd5 {[%clk 0:03:45.8]} 17.
Bd2 {[%clk 0:04:00]} 17... Qb6 {[%clk 0:03:34.7]} 18. Rfd1 {[%clk 0:03:42.7]}
18... Qxd4 {[%clk 0:03:31.5]} 19. Nf6+ {[%clk 0:03:34]} 19... Nxf6 {[%clk
0:03:22.7]} 20. exf6 {[%clk 0:03:32.7]} 20... Qxf6 {[%clk 0:03:18.8]} 21. Qxf6
{[%clk 0:03:30.9]} 21... Bxf6 {[%clk 0:03:17]} 22. g5 {[%clk 0:03:30.1]} 22...
Bxb2 {[%clk 0:03:14.3]} 23. Rab1 {[%clk 0:03:28.2]} 23... Bxa3 {[%clk
0:03:09.6]} 24. gxh6 {[%clk 0:03:26.1]} 24... b5 {[%clk 0:03:06.2]} 25. Be4
{[%clk 0:03:24.3]} 25... Rc8 {[%clk 0:03:01]} 26. Bg5 {[%clk 0:03:22.1]} 26...
O-O {[%clk 0:02:57.5]} 27. Bxh4 {[%clk 0:03:19.8]} 27... Kh7 {[%clk 0:02:55.2]}
28. Bg5 {[%clk 0:03:15.1]} 28... f6 {[%clk 0:02:53.3]} 29. Be3 {[%clk
0:03:11.5]} 29... a5 {[%clk 0:02:49.2]} 30. Rd7+ {[%clk 0:03:08.3]} 30... Kh8
{[%clk 0:02:43.8]} 31. Bxg6 {[%clk 0:03:06.1]} 1-0

[Event "Live Chess"]
[Site "Chess.com"]
[Date "2024.06.02"]
[Round "-"]
[White "KyryloPoluliakh"]
[Black "megabusyman"]
[Result "0-1"]
[WhiteElo "1536"]
[BlackElo "1836"]
[TimeControl "300"]
[EndTime "6:37:11 PDT"]
[Termination "megabusyman won by checkmate"]

1. c4 {[%clk 0:04:52.3]} 1... e5 {[%clk 0:04:58.4]} 2. Nc3 {[%clk 0:04:49.2]}
2... Nc6 {[%clk 0:04:57.3]} 3. g3 {[%clk 0:04:46.7]} 3... f5 {[%clk 0:04:52.8]}
4. Bg2 {[%clk 0:04:45.4]} 4... Nf6 {[%clk 0:04:51.6]} 5. e3 {[%clk 0:04:43.4]}
5... d6 {[%clk 0:04:47.1]} 6. Nge2 {[%clk 0:04:41.6]} 6... Be7 {[%clk
0:04:45.2]} 7. d4 {[%clk 0:04:37.5]} 7... e4 {[%clk 0:04:40.2]} 8. O-O {[%clk
0:04:35.2]} 8... O-O {[%clk 0:04:38.3]} 9. f3 {[%clk 0:04:31.6]} 9... exf3
{[%clk 0:04:32.6]} 10. Bxf3 {[%clk 0:04:29.7]} 10... g6 {[%clk 0:04:24.9]} 11.
Nd5 {[%clk 0:04:23.7]} 11... Nb8 {[%clk 0:04:10.3]} 12. Nxe7+ {[%clk 0:04:19.7]}
12... Qxe7 {[%clk 0:04:08.7]} 13. Nf4 {[%clk 0:04:13]} 13... c6 {[%clk
0:04:06.3]} 14. b4 {[%clk 0:04:07.4]} 14... Ne4 {[%clk 0:03:49.7]} 15. Qb3
{[%clk 0:03:58.7]} 15... Nd7 {[%clk 0:03:34.5]} 16. b5 {[%clk 0:03:52.5]} 16...
Ndf6 {[%clk 0:03:24.5]} 17. bxc6 {[%clk 0:03:43.1]} 17... bxc6 {[%clk
0:03:24.4]} 18. Qc2 {[%clk 0:03:24.2]} 18... Ba6 {[%clk 0:03:17.6]} 19. Re1
{[%clk 0:03:16.3]} 19... d5 {[%clk 0:03:09.2]} 20. cxd5 {[%clk 0:03:12.9]} 20...
cxd5 {[%clk 0:03:09.1]} 21. Qb3 {[%clk 0:02:56.4]} 21... Bc4 {[%clk 0:03:05.7]}
22. Qa4 {[%clk 0:02:47.6]} 22... Rfc8 {[%clk 0:02:33.2]} 23. Ba3 {[%clk
0:02:43.7]} 23... Qf7 {[%clk 0:02:20.2]} 24. Rac1 {[%clk 0:02:25.5]} 24... Nd2
{[%clk 0:02:06.6]} 25. Bg2 {[%clk 0:02:19.5]} 25... Nfe4 {[%clk 0:02:01.7]} 26.
Bxe4 {[%clk 0:02:08.5]} 26... Nxe4 {[%clk 0:02:00.1]} 27. Rc2 {[%clk 0:01:48.7]}
27... g5 {[%clk 0:01:48.1]} 28. Nh3 {[%clk 0:01:39]} 28... Rc7 {[%clk
0:01:36.4]} 29. Nf2 {[%clk 0:01:29.5]} 29... Re8 {[%clk 0:01:14.4]} 30. Nxe4
{[%clk 0:01:25.8]} 30... Rxe4 {[%clk 0:01:14.3]} 31. Bc5 {[%clk 0:01:15.1]}
31... a6 {[%clk 0:01:11.8]} 32. a3 {[%clk 0:01:09.9]} 32... Rb7 {[%clk
0:01:09.2]} 33. Qc6 {[%clk 0:00:59.6]} 33... Bb5 {[%clk 0:00:49.4]} 34. Qc8+
{[%clk 0:00:54.7]} 34... Re8 {[%clk 0:00:46.7]} 35. Qxb7 {[%clk 0:00:41.9]}
35... Qxb7 {[%clk 0:00:45.4]} 36. Bb4 {[%clk 0:00:40.6]} 36... Bd3 {[%clk
0:00:38.7]} 37. Rc3 {[%clk 0:00:37.2]} 37... Bc4 {[%clk 0:00:32.2]} 38. Kg2
{[%clk 0:00:34.1]} 38... Re4 {[%clk 0:00:30.8]} 39. Kf2 {[%clk 0:00:32.7]} 39...
Qf7 {[%clk 0:00:30]} 40. Kf3 {[%clk 0:00:24.2]} 40... Qh5+ {[%clk 0:00:28.7]}
41. Kg2 {[%clk 0:00:21.1]} 41... f4 {[%clk 0:00:26.8]} 42. Rd1 {[%clk 0:00:16]}
42... Qxd1 {[%clk 0:00:25.2]} 43. Rxc4 {[%clk 0:00:13.2]} 43... dxc4 {[%clk
0:00:24]} 44. exf4 {[%clk 0:00:12.9]} 44... Re2+ {[%clk 0:00:22.8]} 45. Kf3
{[%clk 0:00:12]} 45... Rxh2+ {[%clk 0:00:20.3]} 46. Ke4 {[%clk 0:00:11.2]} 46...
Qe2+ {[%clk 0:00:18.3]} 47. Kd5 {[%clk 0:00:10.9]} 47... Qe8 {[%clk 0:00:17.1]}
48. Kxc4 {[%clk 0:00:10]} 48... gxf4 {[%clk 0:00:16.5]} 49. Bc5 {[%clk
0:00:08.8]} 49... Rh5 {[%clk 0:00:16.4]} 50. gxf4 {[%clk 0:00:06.8]} 50... Qb5+
{[%clk 0:00:16.3]} 51. Kc3 {[%clk 0:00:05.3]} 51... Rh3+ {[%clk 0:00:16.2]} 52.
Kd2 {[%clk 0:00:04.5]} 52... Qf1 {[%clk 0:00:15.5]} 53. Kc2 {[%clk 0:00:03.5]}
53... Qg2+ {[%clk 0:00:15.4]} 54. Kd1 {[%clk 0:00:02.1]} 54... Rh1# {[%clk
0:00:15.3]} 0-1

[Event "Live Chess"]
[Site "Chess.com"]
[Date "2024.06.02"]
[Round "-"]
[White "LL220284LL"]
[Black "beltmanjb"]
[Result "1-0"]
[WhiteElo "2479"]
[BlackElo "1683"]
[TimeControl "300"]
[EndTime "6:37:12 PDT"]
[Termination "LL220284LL won by checkmate"]

1. e3 {[%clk 0:04:55.6]} 1... c5 {[%clk 0:04:56.8]} 2. b3 {[%clk 0:04:55.5]}
2... Nc6 {[%clk 0:04:54]} 3. Bb2 {[%clk 0:04:54.6]} 3... e5 {[%clk 0:04:53.1]}
4. d3 {[%clk 0:04:52.4]} 4... d6 {[%clk 0:04:48.7]} 5. g3 {[%clk 0:04:51.2]}
5... Be6 {[%clk 0:04:35]} 6. Bg2 {[%clk 0:04:49.7]} 6... g6 {[%clk 0:04:27.4]}
7. Nf3 {[%clk 0:04:48.2]} 7... Bg7 {[%clk 0:04:25.4]} 8. O-O {[%clk 0:04:43.1]}
8... Nge7 {[%clk 0:04:23.9]} 9. Nbd2 {[%clk 0:04:32.4]} 9... O-O {[%clk
0:04:22.8]} 10. h4 {[%clk 0:04:30.5]} 10... h5 {[%clk 0:04:14.2]} 11. Ng5 {[%clk
0:04:29.2]} 11... Bg4 {[%clk 0:04:10.7]} 12. f3 {[%clk 0:04:27.6]} 12... Bd7
{[%clk 0:04:07.4]} 13. g4 {[%clk 0:04:26.7]} 13... d5 {[%clk 0:03:47.3]} 14.
gxh5 {[%clk 0:04:24.2]} 14... gxh5 {[%clk 0:03:45.8]} 15. f4 {[%clk 0:04:22.3]}
15... Bg4 {[%clk 0:03:32]} 16. Bf3 {[%clk 0:04:20.9]} 16... Nf5 {[%clk
0:03:26.6]} 17. Bxg4 {[%clk 0:04:06]} 17... Nxe3 {[%clk 0:03:24.7]} 18. Qe2
{[%clk 0:04:04.5]} 18... Nxg4 {[%clk 0:03:21.2]} 19. fxe5 {[%clk 0:04:00.2]}
19... Ncxe5 {[%clk 0:03:16.4]} 20. Kh1 {[%clk 0:03:50.8]} 20... Qc7 {[%clk
0:03:09]} 21. Ndf3 {[%clk 0:03:47.8]} 21... Rae8 {[%clk 0:03:05]} 22. Nxe5
{[%clk 0:03:41.5]} 22... Nxe5 {[%clk 0:02:46.2]} 23. Qxh5 {[%clk 0:03:33.9]}
23... Ng6 {[%clk 0:02:25.2]} 24. Qh7# {[%clk 0:03:33.8]} 1-0

[Event "Live Chess"]
[Site "Chess.com"]
[Date "2024.06.02"]
[Round "-"]
[White "Colm_Buckley"]
[Black "Mikhail_Golubev"]
[Result "0-1"]
[WhiteElo "1884"]
[BlackElo "2490"]
[TimeControl "300"]
[EndTime "6:37:45 PDT"]
[Termination "Mikhail_Golubev won by resignation"]

1. d4 {[%clk 0:04:57.5]} 1... Nf6 {[%clk 0:04:54.9]} 2. c4 {[%clk 0:04:56.9]}
2... g6 {[%clk 0:04:53.4]} 3. Nc3 {[%clk 0:04:56.2]} 3... Bg7 {[%clk 0:04:52.8]}
4. e4 {[%clk 0:04:54.6]} 4... d6 {[%clk 0:04:52]} 5. Be2 {[%clk 0:04:54]} 5...
O-O {[%clk 0:04:46.2]} 6. Nf3 {[%clk 0:04:53.3]} 6... e5 {[%clk 0:04:44.4]} 7.
O-O {[%clk 0:04:46.5]} 7... Nc6 {[%clk 0:04:42.8]} 8. dxe5 {[%clk 0:04:43.7]}
8... dxe5 {[%clk 0:04:40.4]} 9. Be3 {[%clk 0:04:35.4]} 9... Bg4 {[%clk
0:04:30.1]} 10. Qa4 {[%clk 0:04:05.5]} 10... Nd4 {[%clk 0:04:06.7]} 11. Nxd4
{[%clk 0:03:33.4]} 11... exd4 {[%clk 0:04:00.4]} 12. Bxg4 {[%clk 0:03:27.8]}
12... Nxg4 {[%clk 0:03:51.2]} 13. Rfd1 {[%clk 0:03:12.8]} 13... Qh4 {[%clk
0:03:41.9]} 14. h3 {[%clk 0:03:00.9]} 14... Nxe3 {[%clk 0:03:39.2]} 15. fxe3
{[%clk 0:02:48.3]} 15... dxc3 {[%clk 0:03:38.3]} 16. bxc3 {[%clk 0:02:47.2]}
16... Qxe4 {[%clk 0:03:35.8]} 0-1

[Event "Live Chess"]
[Site "Chess.com"]
[Date "2024.06.02"]
[Round "-"]
[White "RichardABates"]
[Black "McCarthyStone"]
[Result "1-0"]
[WhiteElo "2367"]
[BlackElo "2460"]
[TimeControl "300"]
[EndTime "6:37:56 PDT"]
[Termination "RichardABates won by resignation"]

1. d4 {[%clk 0:04:56.7]} 1... Nf6 {[%clk 0:04:55.4]} 2. Nf3 {[%clk 0:04:55.1]}
2... g6 {[%clk 0:04:55.3]} 3. g3 {[%clk 0:04:53.1]} 3... Bg7 {[%clk 0:04:55]} 4.
c4 {[%clk 0:04:51.7]} 4... O-O {[%clk 0:04:54.9]} 5. Bg2 {[%clk 0:04:50.2]} 5...
c6 {[%clk 0:04:54.8]} 6. O-O {[%clk 0:04:48.3]} 6... d6 {[%clk 0:04:54.7]} 7.
Nc3 {[%clk 0:04:46.4]} 7... Qa5 {[%clk 0:04:49.6]} 8. e4 {[%clk 0:04:42.3]} 8...
Bg4 {[%clk 0:04:48.6]} 9. h3 {[%clk 0:04:40.5]} 9... Bxf3 {[%clk 0:04:48]} 10.
Qxf3 {[%clk 0:04:39.1]} 10... Nfd7 {[%clk 0:04:46]} 11. Rd1 {[%clk 0:04:36.5]}
11... Qb4 {[%clk 0:04:44]} 12. b3 {[%clk 0:04:32.6]} 12... e5 {[%clk 0:04:23]}
13. d5 {[%clk 0:04:29.7]} 13... f5 {[%clk 0:04:21.9]} 14. Bd2 {[%clk 0:04:18.5]}
14... Qb6 {[%clk 0:04:07.9]} 15. exf5 {[%clk 0:04:06.4]} 15... gxf5 {[%clk
0:04:02.5]} 16. dxc6 {[%clk 0:04:01.6]} 16... Nxc6 {[%clk 0:04:00.4]} 17. Be3
{[%clk 0:03:57.9]} 17... Qa5 {[%clk 0:03:00.3]} 18. Qd5+ {[%clk 0:03:48.2]}
18... Qxd5 {[%clk 0:02:58.8]} 19. Nxd5 {[%clk 0:03:45.5]} 19... e4 {[%clk
0:02:52.8]} 20. Rac1 {[%clk 0:03:39.8]} 20... Nde5 {[%clk 0:02:52]} 21. Nf4
{[%clk 0:03:32]} 21... Nb4 {[%clk 0:02:11.5]} 22. Rxd6 {[%clk 0:03:16.6]} 22...
Nbd3 {[%clk 0:02:06.5]} 23. Rd1 {[%clk 0:03:10.7]} 23... Rf7 {[%clk 0:01:36.3]}
24. Nxd3 {[%clk 0:02:54.2]} 24... Nxd3 {[%clk 0:01:34.5]} 25. R1xd3 {[%clk
0:02:30.2]} 25... exd3 {[%clk 0:01:33.4]} 26. Bd5 {[%clk 0:02:28.7]} 26... Bf8
{[%clk 0:01:18.6]} 27. Rd7 {[%clk 0:02:18.5]} 1-0

[Event "Live Chess"]
[Site "Chess.com"]
[Date "2024.06.02"]
[Round "-"]
[White "McFim"]
[Black "V1nas"]
[Result "1-0"]
[WhiteElo "1782"]
[BlackElo "1314"]
[TimeControl "300"]
[EndTime "6:38:40 PDT"]
[Termination "McFim won by resignation"]

1. e4 {[%clk 0:04:58.4]} 1... Nf6 {[%clk 0:04:58.3]} 2. e5 {[%clk 0:04:55.7]}
2... Nd5 {[%clk 0:04:57.6]} 3. d4 {[%clk 0:04:55.2]} 3... d6 {[%clk 0:04:56.9]}
4. Nf3 {[%clk 0:04:54.7]} 4... dxe5 {[%clk 0:04:56.1]} 5. dxe5 {[%clk
0:04:53.5]} 5... c6 {[%clk 0:04:53.7]} 6. c4 {[%clk 0:04:52]} 6... Nb6 {[%clk
0:04:49.1]} 7. Qxd8+ {[%clk 0:04:49.9]} 7... Kxd8 {[%clk 0:04:47.2]} 8. Nc3
{[%clk 0:04:49.5]} 8... Bg4 {[%clk 0:04:45.4]} 9. Nd4 {[%clk 0:04:44.3]} 9... e6
{[%clk 0:04:43.4]} 10. f3 {[%clk 0:04:38.8]} 10... Bh5 {[%clk 0:04:37.8]} 11. g4
{[%clk 0:04:36.7]} 11... Bg6 {[%clk 0:04:37.1]} 12. h4 {[%clk 0:04:36]} 12... h5
{[%clk 0:04:35.5]} 13. Be3 {[%clk 0:04:21.3]} 13... Bb4 {[%clk 0:04:30.8]} 14.
O-O-O {[%clk 0:04:10.9]} 14... Bxc3 {[%clk 0:04:29.3]} 15. bxc3 {[%clk
0:04:09.5]} 15... hxg4 {[%clk 0:04:28.9]} 16. fxg4 {[%clk 0:04:07.8]} 16... N8d7
{[%clk 0:04:14.6]} 17. Bf4 {[%clk 0:03:56.2]} 17... Be4 {[%clk 0:03:58.1]} 18.
Rh2 {[%clk 0:03:52.2]} 18... Na4 {[%clk 0:03:44.7]} 19. Kd2 {[%clk 0:03:39.1]}
19... Ndc5 {[%clk 0:03:43.5]} 20. h5 {[%clk 0:03:33.5]} 20... Kc7 {[%clk
0:03:23.7]} 21. Rc1 {[%clk 0:03:31.9]} 21... Rad8 {[%clk 0:03:21.7]} 22. Ke3
{[%clk 0:03:30.3]} 22... g5 {[%clk 0:02:38.2]} 23. Bxg5 {[%clk 0:03:25]} 23...
Rdg8 {[%clk 0:02:36.9]} 24. Bf6 {[%clk 0:03:17.7]} 24... Rh7 {[%clk 0:02:36.1]}
25. g5 {[%clk 0:03:12.1]} 25... Bg6 {[%clk 0:02:28.3]} 26. h6 {[%clk 0:03:08.7]}
26... Rd8 {[%clk 0:02:19.1]} 27. Bxd8+ {[%clk 0:03:05.4]} 27... Kxd8 {[%clk
0:02:19]} 28. Rf2 {[%clk 0:03:02.9]} 28... Ke7 {[%clk 0:02:18.2]} 29. Nb3 {[%clk
0:02:55]} 29... Nd7 {[%clk 0:02:13]} 30. Kf4 {[%clk 0:02:52.4]} 30... Nab6
{[%clk 0:02:04.8]} 31. Rd2 {[%clk 0:02:48.3]} 31... Nxc4 {[%clk 0:02:02.3]} 32.
Bxc4 {[%clk 0:02:46.4]} 32... Nb6 {[%clk 0:01:58.5]} 33. Rd4 {[%clk 0:02:39.4]}
33... Bf5 {[%clk 0:01:50.3]} 34. Nc5 {[%clk 0:02:14.5]} 1-0

[Event "Live Chess"]
[Site "Chess.com"]
[Date "2024.06.02"]
[Round "-"]
[White "CarmelJane"]
[Black "booktrunk"]
[Result "1-0"]
[WhiteElo "1999"]
[BlackElo "1499"]
[TimeControl "300"]
[EndTime "6:38:40 PDT"]
[Termination "CarmelJane won by resignation"]

1. e4 {[%clk 0:04:56.7]} 1... b6 {[%clk 0:04:58.9]} 2. d4 {[%clk 0:04:53]} 2...
Bb7 {[%clk 0:04:58.8]} 3. Bd3 {[%clk 0:04:52.1]} 3... e6 {[%clk 0:04:58.7]} 4.
Qe2 {[%clk 0:04:50.3]} 4... h6 {[%clk 0:04:57.7]} 5. Nf3 {[%clk 0:04:49.4]} 5...
Nf6 {[%clk 0:04:56.2]} 6. O-O {[%clk 0:04:46.6]} 6... Be7 {[%clk 0:04:53.6]} 7.
e5 {[%clk 0:04:45.1]} 7... Nh7 {[%clk 0:04:50.1]} 8. Be4 {[%clk 0:04:42.1]} 8...
Bxe4 {[%clk 0:04:47.4]} 9. Qxe4 {[%clk 0:04:42]} 9... c6 {[%clk 0:04:46]} 10. c4
{[%clk 0:04:38.6]} 10... Ng5 {[%clk 0:04:43]} 11. Nxg5 {[%clk 0:04:35.1]} 11...
Bxg5 {[%clk 0:04:41.6]} 12. Nc3 {[%clk 0:04:34.6]} 12... Bxc1 {[%clk 0:04:40.2]}
13. Raxc1 {[%clk 0:04:31.6]} 13... O-O {[%clk 0:04:37.5]} 14. d5 {[%clk
0:04:27.5]} 14... cxd5 {[%clk 0:04:35.8]} 15. cxd5 {[%clk 0:04:27.4]} 15... exd5
{[%clk 0:04:34.5]} 16. Nxd5 {[%clk 0:04:25.6]} 16... Nc6 {[%clk 0:04:32.6]} 17.
f4 {[%clk 0:04:13.5]} 17... Re8 {[%clk 0:04:30]} 18. Qf3 {[%clk 0:04:09.3]}
18... Nd4 {[%clk 0:04:20.7]} 19. Qg4 {[%clk 0:03:50.4]} 19... Rc8 {[%clk
0:04:15.6]} 20. Nf6+ {[%clk 0:03:43.1]} 20... Kh8 {[%clk 0:04:07.6]} 21. Rxc8
{[%clk 0:03:39.4]} 21... Qxc8 {[%clk 0:04:03.4]} 22. Nxe8 {[%clk 0:03:38.2]}
22... Qxe8 {[%clk 0:04:02]} 23. Rd1 {[%clk 0:03:37.5]} 23... Ne6 {[%clk
0:03:54.8]} 24. Qf3 {[%clk 0:03:31.8]} 24... g5 {[%clk 0:03:49.1]} 25. f5 {[%clk
0:03:25.7]} 25... Nc5 {[%clk 0:03:46.3]} 26. Qd5 {[%clk 0:03:20.8]} 26... Kg7
{[%clk 0:03:39.9]} 27. Qd4 {[%clk 0:02:59.1]} 27... Kf8 {[%clk 0:03:23.1]} 28.
f6 {[%clk 0:02:50.5]} 28... Kg8 {[%clk 0:03:16.7]} 29. b4 {[%clk 0:02:41.1]}
29... Ne6 {[%clk 0:03:14.4]} 30. Qxd7 {[%clk 0:02:35]} 30... Qxd7 {[%clk
0:03:12.8]} 31. Rxd7 {[%clk 0:02:34.9]} 31... Kf8 {[%clk 0:03:07.6]} 32. Rxa7
{[%clk 0:02:33.8]} 32... Ke8 {[%clk 0:03:06.5]} 33. Rb7 {[%clk 0:02:30.5]} 33...
Nd4 {[%clk 0:03:05.2]} 34. Rxb6 {[%clk 0:02:27.3]} 34... Kd7 {[%clk 0:03:05.1]}
35. Rb7+ {[%clk 0:02:26.3]} 35... Kc6 {[%clk 0:03:04.3]} 36. Rxf7 {[%clk
0:02:25.4]} 36... Kb5 {[%clk 0:03:01.9]} 37. Rb7+ {[%clk 0:02:23.1]} 37... Ka4
{[%clk 0:03:00.1]} 38. f7 {[%clk 0:02:22.1]} 38... Ne6 {[%clk 0:02:58.2]} 39.
Re7 {[%clk 0:02:16.9]} 39... Nf8 {[%clk 0:02:56.1]} 40. Re8 {[%clk 0:02:16.1]}
40... Nd7 {[%clk 0:02:54.8]} 41. f8=Q {[%clk 0:02:15.3]} 41... Nxf8 {[%clk
0:02:53.4]} 42. Rxf8 {[%clk 0:02:14.3]} 1-0

[Event "Live Chess"]
[Site "Chess.com"]
[Date "2024.06.02"]
[Round "-"]
[White "IgorSchukin"]
[Black "dhairyapandyauk"]
[Result "0-1"]
[WhiteElo "1773"]
[BlackElo "1654"]
[TimeControl "300"]
[EndTime "6:38:50 PDT"]
[Termination "dhairyapandyauk won by resignation"]

1. e4 {[%clk 0:04:59]} 1... e5 {[%clk 0:04:58.4]} 2. Nf3 {[%clk 0:04:58.4]} 2...
Nc6 {[%clk 0:04:57.6]} 3. Nc3 {[%clk 0:04:57.9]} 3... Bc5 {[%clk 0:04:56.6]} 4.
Nxe5 {[%clk 0:04:56.2]} 4... Bxf2+ {[%clk 0:04:55]} 5. Kxf2 {[%clk 0:04:54.8]}
5... Nxe5 {[%clk 0:04:54.7]} 6. d4 {[%clk 0:04:53.6]} 6... Ng6 {[%clk
0:04:54.4]} 7. Bc4 {[%clk 0:04:51.8]} 7... d6 {[%clk 0:04:53.8]} 8. Rf1 {[%clk
0:04:50]} 8... Be6 {[%clk 0:04:52.7]} 9. Qe2 {[%clk 0:04:41.5]} 9... Nf6 {[%clk
0:04:47.8]} 10. Kg1 {[%clk 0:04:39]} 10... O-O {[%clk 0:04:41.4]} 11. Bg5 {[%clk
0:04:37]} 11... h6 {[%clk 0:04:29.8]} 12. Bxf6 {[%clk 0:04:35.1]} 12... gxf6
{[%clk 0:04:27.6]} 13. Nd5 {[%clk 0:04:23.1]} 13... Bxd5 {[%clk 0:04:20.2]} 14.
Bxd5 {[%clk 0:04:21.6]} 14... c6 {[%clk 0:04:19.1]} 15. Bb3 {[%clk 0:04:19.9]}
15... Kg7 {[%clk 0:04:15.8]} 16. Rae1 {[%clk 0:04:14.6]} 16... Re8 {[%clk
0:04:00.7]} 17. Qf3 {[%clk 0:04:11.4]} 17... Qe7 {[%clk 0:03:48.4]} 18. c4
{[%clk 0:04:01.8]} 18... Nf8 {[%clk 0:03:36.4]} 19. Qg3+ {[%clk 0:03:45.7]}
19... Ng6 {[%clk 0:03:33.9]} 20. h4 {[%clk 0:03:40.2]} 20... h5 {[%clk
0:03:29.2]} 21. e5 {[%clk 0:03:26.3]} 21... dxe5 {[%clk 0:03:27.2]} 22. dxe5
{[%clk 0:03:25]} 22... fxe5 {[%clk 0:03:21.2]} 23. Rf5 {[%clk 0:03:19.6]} 23...
Qxh4 {[%clk 0:03:10.9]} 24. Qc3 {[%clk 0:03:04.3]} 24... Qd4+ {[%clk 0:03:02.4]}
25. Qxd4 {[%clk 0:03:02.1]} 25... exd4 {[%clk 0:03:01.7]} 26. Rxe8 {[%clk
0:03:00]} 26... Rxe8 {[%clk 0:03:01.2]} 27. Rxh5 {[%clk 0:02:58.4]} 27... Re1+
{[%clk 0:03:00.2]} 28. Kf2 {[%clk 0:02:56.8]} 28... Rb1 {[%clk 0:02:58.2]} 29.
c5 {[%clk 0:02:49.2]} 29... Rxb2+ {[%clk 0:02:56.7]} 30. Kf3 {[%clk 0:02:46.3]}
30... Rxg2 {[%clk 0:02:53.1]} 31. Ke4 {[%clk 0:01:58.8]} 31... Rg4+ {[%clk
0:02:46.3]} 32. Kf3 {[%clk 0:01:54.8]} 32... Rf4+ {[%clk 0:02:43]} 33. Ke2
{[%clk 0:01:50.2]} 33... f5 {[%clk 0:02:33.9]} 34. Bc2 {[%clk 0:01:41.4]} 34...
Kf6 {[%clk 0:02:25.1]} 35. Rh7 {[%clk 0:01:30.4]} 35... Ne7 {[%clk 0:02:21.2]}
36. Bb3 {[%clk 0:01:18.7]} 36... Re4+ {[%clk 0:02:14.1]} 37. Kd3 {[%clk
0:01:14.4]} 37... Rg4 {[%clk 0:02:10.5]} 38. Rf7+ {[%clk 0:01:10.5]} 38... Kg5
{[%clk 0:02:07.7]} 39. Rxe7 {[%clk 0:01:08.8]} 39... f4 {[%clk 0:02:06.8]} 40.
Kxd4 {[%clk 0:00:59.8]} 40... f3+ {[%clk 0:02:05.6]} 41. Ke3 {[%clk 0:00:58.9]}
41... Rg3 {[%clk 0:02:01.8]} 42. Kf2 {[%clk 0:00:55.9]} 42... Rh3 {[%clk
0:01:59.1]} 43. Rg7+ {[%clk 0:00:48]} 43... Kf4 {[%clk 0:01:50.2]} 44. Rf7+
{[%clk 0:00:46.5]} 44... Ke4 {[%clk 0:01:47.6]} 45. Rxb7 {[%clk 0:00:40.9]}
45... Rh2+ {[%clk 0:01:46]} 46. Kf1 {[%clk 0:00:37.7]} 46... Rh1+ {[%clk
0:01:40.6]} 47. Kf2 {[%clk 0:00:36.2]} 47... Rh2+ {[%clk 0:01:39.2]} 48. Ke1
{[%clk 0:00:32.1]} 48... Rh1+ {[%clk 0:01:34.8]} 49. Kd2 {[%clk 0:00:25.4]}
49... Rh2+ {[%clk 0:01:30.8]} 50. Kc3 {[%clk 0:00:23.5]} 50... f2 {[%clk
0:01:25.7]} 51. Rf7 {[%clk 0:00:19]} 51... Ke3 {[%clk 0:01:22.2]} 52. Bc4 {[%clk
0:00:18.1]} 52... Rh1 {[%clk 0:01:17.3]} 53. Rf6 {[%clk 0:00:16]} 53... Rc1+
{[%clk 0:01:15.5]} 54. Kb2 {[%clk 0:00:14.5]} 54... Rxc4 {[%clk 0:01:14.2]} 55.
Re6+ {[%clk 0:00:12.6]} 55... Kf3 {[%clk 0:01:12.2]} 56. Rxc6 {[%clk 0:00:10.4]}
56... f1=Q {[%clk 0:01:09.8]} 57. Rf6+ {[%clk 0:00:09.5]} 57... Rf4 {[%clk
0:01:09.1]} 58. Rxf4+ {[%clk 0:00:08.3]} 58... Kxf4 {[%clk 0:01:08.3]} 59. Kb3
{[%clk 0:00:07.7]} 59... Qb5+ {[%clk 0:01:07.6]} 0-1

[Event "Live Chess"]
[Site "Chess.com"]
[Date "2024.06.02"]
[Round "-"]
[White "NAZRIZ1977"]
[Black "Tatarinov_Maxim"]
[Result "0-1"]
[WhiteElo "2081"]
[BlackElo "2294"]
[TimeControl "300"]
[EndTime "6:38:55 PDT"]
[Termination "Tatarinov_Maxim won by resignation"]

1. d4 {[%clk 0:04:57.3]} 1... Nf6 {[%clk 0:04:58.5]} 2. c4 {[%clk 0:04:56.3]}
2... c5 {[%clk 0:04:57.4]} 3. d5 {[%clk 0:04:55]} 3... b5 {[%clk 0:04:56.6]} 4.
cxb5 {[%clk 0:04:54.1]} 4... a6 {[%clk 0:04:56.1]} 5. b6 {[%clk 0:04:52.9]} 5...
e6 {[%clk 0:04:52.7]} 6. Nc3 {[%clk 0:04:50.2]} 6... exd5 {[%clk 0:04:51.9]} 7.
Nxd5 {[%clk 0:04:49.3]} 7... Nxd5 {[%clk 0:04:51.5]} 8. Qxd5 {[%clk 0:04:48.1]}
8... Nc6 {[%clk 0:04:51.4]} 9. Nf3 {[%clk 0:04:46.2]} 9... Be7 {[%clk 0:04:50]}
10. e4 {[%clk 0:04:44.6]} 10... O-O {[%clk 0:04:47.1]} 11. a3 {[%clk 0:04:40.6]}
11... Qxb6 {[%clk 0:04:45.5]} 12. Bd3 {[%clk 0:04:39]} 12... Bb7 {[%clk
0:04:38.7]} 13. Qh5 {[%clk 0:04:37]} 13... g6 {[%clk 0:04:25.7]} 14. Qh6 {[%clk
0:04:34.9]} 14... Bf6 {[%clk 0:04:22.4]} 15. Ng5 {[%clk 0:04:30.7]} 15... Bxg5
{[%clk 0:04:17.6]} 16. Bxg5 {[%clk 0:04:30.6]} 16... Ne5 {[%clk 0:04:09.9]} 17.
Be2 {[%clk 0:04:19.8]} 17... Bxe4 {[%clk 0:04:00.2]} 18. f4 {[%clk 0:04:11.8]}
18... Qxb2 {[%clk 0:03:47.9]} 19. Bf6 {[%clk 0:03:54.2]} 19... Qxa1+ {[%clk
0:03:44.6]} 20. Kd2 {[%clk 0:03:51.4]} 20... Nc4+ {[%clk 0:03:43.2]} 21. Bxc4
{[%clk 0:03:50.1]} 21... Qxf6 {[%clk 0:03:42.1]} 0-1